Cogmind - Beta 14 @@@ ROGUE MODE // 2024.09.22 @ 11:55:46 Player: ILikeVoltron Result: Self-destructed Performance ------------- Evolutions (1) 500 Regions Visited (3) 600 Robots Destroyed (31) 155 Value Destroyed (600) 600 Prototype IDs (0) 0 Alien Tech Used (0) 0 Bonus (33) 33 TOTAL SCORE: 1888 Bonus ------- Follower Combat Kills 33 Cogmind --------- Core Integrity 310/400 Matter 300/300 Energy 250/250 System Corruption 0% Temperature Cool (0) Movement Walking (400) Ox4 Location -9/Materials Parts ------- > --- POWER (1) -------- Ion Engine > --- PROPULSION (2) --- Aluminum Leg Aluminum Leg > --- UTILITY (3) ------ Improved Heat Sink Huge Storage Unit Hardened Light Armor Plating > --- WEAPON (3) ------- Small Laser Light Assault Rifle > --- INVENTORY (25) --- Ion Engine Light Nuclear Core Light Treads Improved Hover Unit Improved Hover Unit Improved Hover Unit Improved Hover Unit Large Storage Unit High-capacity Storage Unit Large Battery (200) Small Matter Pod (50) High-capacity Matter Pod (200) Weight Redist. System Signal Interpreter Improved Terrain Scanner Seismic Detector Medium Armor Plating Medium Armor Plating Hardened Light Armor Plating Hardened Light Armor Plating EMP Blaster Grenade Launcher Mining Laser Peak State ------------ > --- POWER ------------ Ion Engine > --- PROPULSION ------- Light Treads Light Treads > --- UTILITY ---------- Improved Heat Sink Huge Storage Unit Hardened Light Armor Plating > --- WEAPON ----------- EM Pulse Gun Medium Laser Light Assault Rifle > --- INVENTORY -------- Light Nuclear Core Aluminum Leg Aluminum Leg Improved Hover Unit Improved Hover Unit Improved Hover Unit Improved Hover Unit Large Storage Unit High-capacity Storage Unit Large Battery Small Matter Pod High-capacity Matter Pod Weight Redist. System Signal Interpreter Improved Terrain Scanner Seismic Detector Medium Armor Plating Medium Armor Plating Hardened Light Armor Plating Hardened Light Armor Plating Grenade Launcher Mining Laser [Rating: 15] Favorites ----------- Power Ion Engine Engine Ion Engine Propulsion Aluminum Leg Treads Light Treads Leg Aluminum Leg Utility Huge Storage Unit Device Improved Terrain Scanner Storage Huge Storage Unit Protection Hardened Light Armor Plating Weapon Medium Laser Energy Gun Medium Laser Ballistic Gun Light Assault Rifle Special Weapon Mining Laser Build | -11 -10 -10 -9 ------- Run | Yrd Mat Min Mat Slots Evolved 2 | . . . 2 Power . | . . . . Propulsion . | . . . . Utility 1 | . . . 1 Weapon 1 | . . . 1 Parts Attached 22 | 1 13 . 8 Power 3 | . 2 . 1 Engine 3 | . 2 . 1 Core . | . . . . Reactor . | . . . . Propulsion 7 | . 5 . 2 Treads 2 | . 2 . . Leg 5 | . 3 . 2 Wheel . | . . . . Hover . | . . . . Flight . | . . . . Utility 8 | 1 4 . 3 Device 3 | 1 1 . 1 Storage 3 | . 3 . . Processor . | . . . . Hackware . | . . . . Protection 2 | . . . 2 Artifact . | . . . . Weapon 4 | . 2 . 2 Energy Gun 2 | . . . 2 Energy Cannon . | . . . . Ballistic Gun 1 | . 1 . . Ballistic Cannon . | . . . . Launcher . | . . . . Special Weapon 1 | . 1 . . Impact Weapon . | . . . . Slashing Weapon . | . . . . Piercing Weapon . | . . . . Special Melee Weapon . | . . . . Unidentified Prototypes . | . . . . Parts Lost 5 | . 2 . 3 Power 2 | . 2 . . Propulsion 1 | . . . 1 Utility . | . . . . Weapon 2 | . . . 2 Highest Loss Streak 3 | . 1 . 3 To Critical Strikes . | . . . . Average Slot Usage (%) 97 | . 99 100 91 Engine 12 | . 13 14 11 Treads 10 | . 8 28 9 Leg 15 | . 19 . 12 Device 13 | . 14 14 9 Storage 13 | . 14 14 11 Protection 2 | . . . 11 Energy Gun 21 | . 24 14 14 Ballistic Gun 5 | . 2 14 11 Peak Build Rating 15 | 9 11 11 15 Average Rating 10 | 6 9 11 14 On Entrance 9 | 6 9 11 11 Naked Turns . | . . . . Heaviest Build 102 | 12 89 88 102 Greatest Support 46 | 20 46 46 46 Greatest Overweight (x) 4 | . 4 1 4 Average Overweight (x) . | . . 1 2 Largest Inventory Capacity 25 | 8 25 25 25 Average Capacity 18 | 8 16 25 25 Most Carried 25 | 8 25 24 24 Average Carried 16 | 6 14 24 22 Final Capacity 25 | 8 25 25 25 Final Carried 24 | 8 24 24 23 Class Distribution -------------------- 49% | Mutant 40% | Scavenger-Mutant 6% | Scavenger-Tank 3% | Tank Dominant Class ---------------- Mutant | -10/Materials Scavenger-Mutant | -10/Mines Scavenger-Mutant | -9/Materials Resources | -11 -10 -10 -9 ----------- Run | Yrd Mat Min Mat Matter Collected 703 | 210 331 . 162 Remotely . | . . . . Salvage Created 1023 | 225 535 . 263 Parts 66 | 12 38 . 16 Haulers Intercepted 3 | . 2 . 1 Recyclers Shooed . | . . . . Parts Field Recycled . | . . . . Retrieved Matter . | . . . . Parts Self-Destructed . | . . . . Prevented . | . . . . Kills | -11 -10 -10 -9 ------- Run | Yrd Mat Min Mat Combat Hostiles Destroyed 16 | . 11 . 5 Guns 16 | . 11 . 5 Classes Destroyed 7 | 3 4 . . Worker 3 | 2 1 . . Tunneler 6 | 5 1 . . Hauler 3 | . 2 . 1 Recycler 1 | 1 . . . Watcher 2 | . 2 . . Swarmer 3 | . 3 . . Grunt 13 | . 8 . 5 Best Kill Streak 6 | 6 4 . 2 Combat Bots Only 2 | . 2 . 2 Max Kills in Single Turn 2 | 2 1 . 1 Gunslinging . | . . . . Exploded . | . . . . Melee . | . . . . Uniques/NPCs Destroyed . | . . . . Combat | -11 -10 -10 -9 -------- Run | Yrd Mat Min Mat Hostile Shots Fired 119 | . 79 . 40 Missed 30 | . 21 . 9 Damage Taken 1030 | . 624 . 406 Core 244 | . 154 . 90 Absorbed by Shields . | . . . . Core Remaining (%) 69 | 100 . 38 . Volleys Fired 105 | 15 56 . 34 Largest 3 | 2 2 . 3 Hottest 110 | 90 100 . 110 Shots Fired 215 | 30 108 . 77 Gun 211 | 30 104 . 77 Cannon . | . . . . Launcher . | . . . . Special 4 | . 4 . . Kinetic 43 | . 10 . 33 Thermal 155 | 30 98 . 27 Explosive . | . . . . Electromagnetic 17 | . . . 17 Robot Hit Streak 12 | 6 12 . 6 Robot Miss Streak 6 | 2 6 . 3 Penetration Max . | . . . . Secondary Targets . | . . . . Shots Hit Robots 136 | 19 71 . 46 Core Hits 54 | 9 32 . 13 Critical Kills . | . . . . Critical Parts Destroyed . | . . . . Critical Strikes 9 | 2 6 . 1 Burn 9 | 2 6 . 1 Melee Attacks . | . . . . Impact . | . . . . Slashing . | . . . . Piercing . | . . . . Sneak Attacks . | . . . . Combat Hostiles . | . . . . Follow-up Attacks . | . . . . Damage Inflicted 1490 | 241 811 . 438 Guns 1480 | 241 811 . 428 Cannons . | . . . . Explosions . | . . . . Melee . | . . . . Ramming 10 | . . . 10 Kinetic 198 | . 52 . 146 Thermal 1190 | 241 759 . 190 Explosive . | . . . . Electromagnetic 92 | . . . 92 Impact . | . . . . Slashing . | . . . . Piercing . | . . . . Highest Corruption . | . . . . Average Corruption . | . . . . Corruption Purged . | . . . . Corruption Blocked . | . . . . Overload Shots . | . . . . Overflow Damage . | . . . . Projectiles . | . . . . Explosions . | . . . . Melee . | . . . . Knockbacks . | . . . . Impact . | . . . . Kinetic . | . . . . Secondary . | . . . . Self-Inflicted Damage . | . . . . Shots . | . . . . Rammed 1 | . . . 1 Targets Rammed 1 | . . . 1 Kicked . | . . . . Crushed . | . . . . Highest Temperature 538 | 140 210 . 538 Average Temperature 90 | 51 72 . 182 Received Heat Transfer 489 | . 297 . 192 Effects 4 | . . . 4 Interference 2 | . . . 2 Matter Decay 1 | . . . 1 Damage (core) 1 | . . . 1 Siege Activations . | . . . . Robots Corrupted . | . . . . Combat Hostiles . | . . . . Parts Fried . | . . . . Impact Corruptions . | . . . . Robots Melted . | . . . . Combat Hostiles . | . . . . Parts Melted 11 | 4 5 . 2 Heat Transferred 3790 | 780 2440 . 570 Parts Sabotaged . | . . . . Parts Stolen . | . . . . Parts Stripped . | . . . . Power Chain Reactions . | . . . . Alert | -11 -10 -10 -9 ------- Run | Yrd Mat Min Mat Peak Influence 209 | 40 209 23 95 Initial 26 | . 26 23 8 Average 76 | 15 96 23 60 Maximum Alert Level 1 | . 1 . . Low Security (%) 93 | 100 89 100 100 Level 1 6 | . 10 . . Level 2 . | . . . . Level 3 . | . . . . Level 4 . | . . . . Level 5 . | . . . . High Security . | . . . . Max Security . | . . . . Squads Dispatched 2 | . 1 . 1 Investigation 1 | . 1 . . Extermination . | . . . . Reinforcement 1 | . . . 1 Assault . | . . . . Garrison . | . . . . Intercept . | . . . . Searches Triggered . | . . . . Construction Impeded . | . . . . Haulers Reinforced . | . . . . Active Scanning Responses . | . . . . Cargo Convoy Interrupts . | . . . . Stealth | -11 -10 -10 -9 --------- Run | Yrd Mat Min Mat Distress Signals 1 | . 1 . . Communications Jammed . | . . . . Distress Signals . | . . . . Times Spotted 31 | . 21 . 10 Peak Tracking Total 4 | . 4 . 4 Tactical Retreats 1 | . 1 . . Traps | -11 -10 -10 -9 ------- Run | Yrd Mat Min Mat Traps Triggered . | . . . . Indirectly . | . . . . Trap Hack Attempts . | . . . . Triggered . | . . . . Disarmed . | . . . . Reprogrammed . | . . . . Reused . | . . . . Traps Extracted . | . . . . Installed . | . . . . Triggered . | . . . . Machines | -11 -10 -10 -9 ---------- Run | Yrd Mat Min Mat Machines Disabled . | . . . . Max in Single Turn . | . . . . Machines Repaired . | . . . . Machines Dismantled . | . . . . Machines Sabotaged . | . . . . Overloaded Fab Kills . | . . . . Hacking | -11 -10 -10 -9 --------- Run | Yrd Mat Min Mat Machines Accessed 8 | . 7 . 1 Terminals 8 | . 7 . 1 Fabricators . | . . . . Repair Stations . | . . . . Recycling Units . | . . . . Scanalyzers . | . . . . Garrison Access . | . . . . Total Hacks 19 | . 17 . 2 Successful 9 | . 9 . . Failed 10 | . 8 . 2 Catastrophic . | . . . . Database Lockouts . | . . . . Manual 13 | . 13 . . Terminals 19 | . 17 . 2 Fabricators . | . . . . Repair Stations . | . . . . Recycling Units . | . . . . Scanalyzers . | . . . . Garrison Access . | . . . . Terminal Hacks 2 | . 2 . . Hauler Manifests 1 | . 1 . . Zone Layout 1 | . 1 . . Fabricator Hacks . | . . . . Repair Station Hacks . | . . . . Recycling Unit Hacks . | . . . . Scanalyzer . | . . . . Garrison Access Hacks . | . . . . Unauthorized Hacks 6 | . 6 . . Terminals 6 | . 6 . . Assimilate 1 | . 1 . . Skim 5 | . 5 . . Fabricators . | . . . . Repair Stations . | . . . . Recycling Units . | . . . . Scanalyzers . | . . . . Garrison Access . | . . . . Data Cores Recovered . | . . . . Used . | . . . . Hacking Detections 6 | . 5 . 1 Full Trace Events 1 | . 1 . . Feedback Events . | . . . . Feedback Blocked . | . . . . Robot Schematics Acquired . | . . . . Robots Built . | . . . . Authchips . | . . . . Time . | . . . . Total Robot Build Rating . | . . . . Part Schematics Acquired . | . . . . Parts Built . | . . . . Authchips . | . . . . Time . | . . . . Total Part Build Rating . | . . . . Parts Repaired . | . . . . Time . | . . . . Parts Recycled . | . . . . Recycled Matter . | . . . . Retrieved Matter . | . . . . Retrieved Components . | . . . . Parts Scanalyzed . | . . . . Part Schematics Acquired . | . . . . Parts Damaged . | . . . . Bothacking | -11 -10 -10 -9 ------------ Run | Yrd Mat Min Mat Used RIF Installer . | . . . . Robots Hacked . | . . . . Non-combat . | . . . . Combat . | . . . . Robot Hacks Applied . | . . . . Relay Couplers Released . | . . . . Fabnet Peak Effective % . | . . . . Robots Rewired . | . . . . Allies Hacked . | . . . . Hacks Repelled . | . . . . Allies | -11 -10 -10 -9 -------- Run | Yrd Mat Min Mat Total Allies 3 | . 1 2 . Largest Group 3 | . 1 3 3 Highest-Rated Group 52 | . 9 52 52 Highest-Rated Ally 31 | . 9 31 31 Total Orders . | . . . . Ally Attacks 7 | . . . 7 Total Damage 103 | . . . 103 Kills 1 | . . . 1 Allies Corrupted . | . . . . Allies Melted . | . . . . Intel | -11 -10 -10 -9 ------- Run | Yrd Mat Min Mat Robot Analysis Total . | . . . . Derelict Logs Recovered . | . . . . Drone Launches . | . . . . Drone Recoveries . | . . . . Exploration | -11 -10 -10 -9 ------------- Run | Yrd Mat Min Mat Turns Passed 1822 | 116 1140 167 399 Spaces Moved 681 | 21 511 70 79 Core . | . . . . Treads 227 | . 119 70 38 Legs 454 | 21 392 . 41 Wheels . | . . . . Hover . | . . . . Flight . | . . . . Fastest Speed 120 | 120 120 240 240 Average Speed 200 | 120 174 240 354 Slowest Speed 480 | 120 480 240 400 Overloaded Moves . | . . . . Propulsion Burnouts . | . . . . Robots Hopped . | . . . . Cave-ins Triggered . | . . . . Exploration Rate (%) 33 | 4 92 24 13 Regions Visited 3 Branch Regions 1 Pre-discovered Areas . | . . . . Known Exits Taken 1 | . . 1 . Unknown Exits Taken 2 | 1 1 . . Scrap Searched . | . . . . Spaces Dug 4 | . 4 . . Terrain Destroyed 4 | . 4 . . Melee . | . . . . Projectile 4 | . 4 . . AOE . | . . . . Terrain Rammed . | . . . . Walls Destroyed . | . . . . Machines Disabled . | . . . . Actions | -11 -10 -10 -9 --------- Run | Yrd Mat Min Mat Total 936 | 81 653 70 132 Wait 79 | 43 26 1 9 Move 678 | 20 510 69 79 Hop . | . . . . Pick Up 29 | 2 26 . 1 Fast Attach 7 | 1 5 . 1 Attach 3 | . . . 3 Detach 3 | . 3 . . Swap 12 | . 8 . 4 Drop 19 | . 19 . . Fire 105 | 15 56 . 34 Melee . | . . . . Ram . | . . . . Kick . | . . . . Crush 1 | . . . 1 Escape Stasis . | . . . . Rewire . | . . . . Trap . | . . . . Miscellaneous . | . . . . Route ------- -11/Scrapyard -10/Materials (discovered 5 exits: *Mat x3 / [*Min x2]) -10/Mines (discovered 2 exits: *Mat x2) -9/Materials History --------- Turn | Location | Event 22 | -11/Scrapyard | Discovered new exit (range 3) 117 | -11/Scrapyard | Entered Materials 306 | -10/Materials | Build established: Mutant 386 | -10/Materials | Discovered new exit (range 14) 407 | -10/Materials | Discovered new exit (range 16) 477 | -10/Materials | Discovered new exit (range 16) 757 | -10/Materials | Discovered new exit (range 13) 1039 | -10/Materials | Discovered new exit (range 6) 1044 | -10/Materials | Core integrity fell below 50% 1070 | -10/Materials | Learned Storage trap positions 1153 | -10/Materials | Learned location of 1 exit from Recycling 1159 | -10/Materials | Learned 2 Storage zone layouts 1182 | -10/Materials | Learned location of 2 exits from Subcaves 1195 | -10/Materials | Build established: Scavenger-Mutant 1257 | -10/Materials | Entered Mines 1257 | -10/Mines | Accompanied by 1 ally 1258 | -10/Mines | Identified exit to Materials 1424 | -10/Mines | Entered Materials 1424 | -9/Materials | Accompanied by 3 allies 1424 | -9/Materials | Evolved 2 slots: Utility x1, Weapon x1 1429 | -9/Materials | Led the pair of lost Derelicts to an unsafe place 1496 | -9/Materials | Lost 3 allies 1655 | -9/Materials | Lost 3 parts (1n2w) 1823 | -9/Materials | Self-destructed Last Messages --------------- 01531_ Acquired 39 matter. 01573_ Connecting with Terminal... 01596_ Lgt. Treads destroyed. 01602_ G-34 Mercenary suffers critical hit (Burn). 01602_ Med. Laser destroyed. 01607_ Sml. Laser melted. 01607_ G-34 Mercenary destroyed. 01618_ Acquired 18 matter. 01622_ G-34 Mercenary destroyed. 01623_ Acquired 1 matter. 01624_ EM Pulse Gun destroyed. 01625_ ALERT: Hostiles spotted, dispatching reinforcements to Terminal M004. 01626_ Acquired 1 matter. 01640_ Acquired 12 matter. 01648_ Acquired Sml. Laser. 01658_ G-34 Mercenary destroyed. 01661_ Acquired 14 matter. 01714_ Acquired EMP Blaster. 01770_ A-02 Transporter destroyed. 01803_ Acquired 9 matter. Map ----- +----------------------------------------------------+ | ?????????????????????? + ""#??? | | ?????????????????????? # T"#??? | | ?????????????????????? # ""#??? | | ??????????????????????####+####+### ## #??? | | ??????????????????????# # # ## """ #??? | | ??????????????????????# """ # + ## """ #??? | | ??????????????????????# """ + | # ## """ #??? | | ??????????????????????# """ # | # ## #??? | | ??????????????????????# # # #####+##+##??? | | ??????????????????????#! # # #???# #???? | | ??????????????????????####+### # #####% #???? | | ??????????????????######?# #?# + ==%!! #???? | | ??????????????????# # #?# # *#### #???? | | ??????????????????# # ######## #??? #???? | | ??????????????????# + #????#???? | | ??????????????????# != # ###### #????????? | | ??????????????????# ! # #????# #????????? | | ??????????????????# ?# #????# #????????? | | ??????????????????######?# #????# #????????? | | ?????????????????????????#*#????# #????????? | | ?????????????????????????#[#????+ #????????? | | ?????????????????????????#]#??? # #????????? | | ?????????????????????????#%#?? # #????????? | | ??????????????????########+##?#?# #????????? | | ??????????????????# ![!#???# #????????? | | ??????????????????# @! #???# ????????? | | ??????????????????# t/ ^ ????????? | | ??????????????????+ ###### ^?????????? | | ??????????????????# """ !! #????????????????????? | | ??????????????????# """ !! #????????????????????? | | ??????????????????# """ #????????????????????? | | ??????????????????# #????????????????????? | | ???????????????????##########????????????????????? | | ?????????????????????????????????????????????????? | | ?????????????????????????????????????????????????? | | ?????????????????????????????????????????????????? | | ?????????????????????????????????????????????????? | | ?????????????????????????????????????????????????? | | ?????????????????????????????????????????????????? | | ?????????????????????????????????????????????????? | | ?????????????????????????????????????????????????? | | ?????????????????????????????????????????????????? | | ?????????????????????????????????????????????????? | | ?????????????????????????????????????????????????? | | ?????????????????????????????????????????????????? | | ?????????????????????????????????????????????????? | | ?????????????????????????????????????????????????? | | ?????????????????????????????????????????????????? | | ?????????????????????????????????????????????????? | | ?????????????????????????????????????????????????? | +----------------------------------------------------+ Best States ------------- Heat Dissipation 42 Energy Generation 10 Energy Capacity 250 Matter Stores 300 Matter Capacity 300 Sight Range 16 Terrain Scan Range 16 Terrain Scan Density 10 Additional Mass Support 6 Armor Coverage 375 Evasion (%) 55 Recoil Reduction 2 Item Schematics ----------------- None Robot Schematics ------------------ None Fabricated ------------ Nothing Alien Tech Used ----------------- None Achievements -------------- None Challenges ------------ None Game ------ Seed HardcellBiometalShield Manual? 0 Play Time 00:19:10 Cumulative 171.6 hours Start 2024.09.22 @ 11:39:29 End 2024.09.22 @ 11:55:46 Sessions 1 Manual Loads 0 Difficulty Rogue Special Mode None Game No. 311 Rogue 307 Adventurer 0 Explorer 4 Win Type - Total 0 Types 0/0/0/0/0/0/0/0/0 Lore% 21 Gallery% 46 Achievement% 35 Wizard Run 0 Options --------- Layout 1 ASCII 0 Keyboard 1 Movement Arrows Keybinds 0 Fullscreen 1 Font 32/SmallcapsGlow Map View 130x35 Zoom Use 0% Tactical HUD 1 Map Filters NONE Filters NONE Steam 0 RUN: 57af6925-6302-4289-b171-0ce14405c1ec